bitfinex-derivatives/quotes_SOLF0:USTF0_20240927
["timestamp","ask_amount","ask_price","bid_price","bid_amount"]
[1727434988375,10.82,156.23,156.18,10.82]
[1727434989167,3.2003,156.2,156.18,10.82]
[1727434990275,3.2003,156.2,156.17,3.2007]
[1727434995480,1.2788,156.26,156.18,16.9]
[1727434996372,3.1994,156.24,156.21,3.2]
[1727434996775,16.9,156.27,156.18,16.9]
[1727434996979,3.2001,156.21,156.18,20.1004]
[1727434997379,3.2001,156.21,156.18,3.2004]
[1727434997974,20.1108075,156.27,156.17,3.2007]
[1727434997975,3.2002,156.2,156.17,3.2007]
[1727434999683,3.2004,156.19,156.16,20.1009]
[1727435000181,16.9,156.25,156.16,16.9]
[1727435000978,3.2003,156.2,156.17,3.2007]
[1727435009688,3.2003,156.2,156.18,3.2006]
[1727435012289,3.2003,156.2,156.18,14.0206]
[1727435012993,3.2108075,156.27,156.19,10.82]
[1727435013292,10.82,156.25,156.19,10.82]
[1727435013693,10.82,156.25,156.19,14.0202]
[1727435013989,10.82,156.25,156.14,5.75180174]
[1727435014189,3.1997,156.23,156.2,14.0202]
[1727435014587,3.1997,156.23,156.21,10.82]
[1727435015393,3.1998,156.22,156.2,14.0202]
[1727435016695,10.82,156.26,156.21,14.0199]
[1727435016896,1.269,156.28,156.23,10.82]
[1727435017094,3.1994,156.24,156.23,10.82]
[1727435018193,3.1996,156.23,156.21,10.82]
[1727435018990,3.1998,156.22,156.21,10.82]
[1727435019391,10.82,156.27,156.21,10.82]
[1727435019591,3.1995,156.24,156.21,14.0199]
[1727435026408,3.1996,156.23,156.21,14.0199]
[1727435028605,3.1996,156.23,156.22,10.82]
[1727435029013,3.1994,156.24,156.22,14.0197]
[1727435029208,10.82,156.29,156.22,14.0197]
[1727435029502,10.82,156.29,156.24,10.82]
[1727435030802,3.1992,156.25,156.24,10.82]
[1727435031403,3.1994,156.24,156.23,10.82]
[1727435031811,10.82,156.28,156.23,10.82]
[1727435032015,3.1993,156.25,156.23,10.82]
[1727435032213,10.82,156.28,156.23,10.82]
[1727435033505,10.82,156.26,156.14,5.75180174]
[1727435033809,3.1997,156.23,156.2,10.82]
[1727435034314,3.1997,156.23,156.2,14.02]
[1727435036712,3.1997,156.23,156.22,10.82]
[1727435038310,3.1992,156.25,156.22,14.0198]
[1727435038510,3.1992,156.25,156.23,10.82]
[1727435040411,10.82,156.28,156.23,10.82]
[1727435040710,3.1994,156.24,156.22,10.82]
[1727435040912,10.82,156.24,156.14,5.75180174]
[1727435041115,3.2003,156.2,156.18,10.82]
[1727435041607,2.7324,156.3,156.12,130.5256532]
[1727435041608,10.82,156.19,156.12,54.4856532]
[1727435041806,10.82,156.17,156.12,10.82]
[1727435042214,3.2014,156.14,156.12,10.82]
[1727435042411,1.2735,156.21,156.09,2.6451]
[1727435042412,3.26220254,156.2,156.09,2.6451]
[1727435042613,10.82,156.13,156.05,1.3803]
[1727435042810,10.82,156.12,156.08,10.82]
[1727435043008,11.61043496,156.19,156.08,10.82]
[1727435043213,10.82,156.14,156.08,10.82]
[1727435043408,10.82,156.14,156.09,10.82]
[1727435043811,3.2019,156.12,156.09,10.82]
[1727435044208,3.2019,156.12,156.08,3.2026]
[1727435044409,3.2019,156.12,156.09,10.82]
[1727435046522,3.2017,156.13,156.09,14.0224]
[1727435047421,3.2015,156.14,156.1,14.0222]
[1727435047617,3.2015,156.14,156.12,10.82]
[1727435047818,10.82,156.16,156.12,10.82]
[1727435048623,3.2014,156.15,156.11,3.202]
[1727435048810,10.82,156.16,156.11,10.82]
[1727435049521,3.2014,156.14,156.11,10.82]
[1727435051216,2.5752,156.21,156.13,10.82]
[1727435051519,2.5752,156.21,156.15,10.82]
[1727435051720,10.82,156.19,156.15,10.82]
[1727435051915,3.2009,156.17,156.15,10.82]
[1727435052120,10.82,156.19,156.15,10.82]
[1727435052317,1.271,156.22,156.17,10.82]
[1727435052318,10.82,156.2,156.17,10.82]
[1727435052733,1.3371,156.25,156.18,10.82]
[1727435052917,1.3371,156.25,156.2,10.82]
[1727435053123,10.82,156.25,156.2,10.82]
[1727435053318,10.82,156.25,156.22,10.82]
[1727435053519,10.82,156.27,156.23,10.82]
[1727435053918,3.1994,156.24,156.23,10.82]
[1727435054324,3.1994,156.24,156.2,16.9]
[1727435054633,3.1994,156.24,156.2,20.1001]
[1727435054928,2.6613,156.3,156.2,20.11192613]
[1727435055127,1.393,156.3,156.23,3.1994]
[1727435055431,1.393,156.3,156.22,16.9]
[1727435055827,1.393,156.3,156.22,20.17770491]
[1727435056831,3.1987,156.27,156.23,3.1995]
[1727435057724,1.393,156.3,156.22,16.9]
[1727435058526,3.1989,156.27,156.23,3.1996]
[1727435058931,1.393,156.3,156.22,16.9]
[1727435059832,3.199,156.26,156.22,20.0997]
[1727435061233,3.199,156.26,156.22,3.1997]
[1727435061939,3.1992,156.25,156.22,3.1997]
[1727435063332,3.1992,156.25,156.21,7.1623]
[1727435064333,3.1994,156.24,156.21,7.1623]
[1727435064736,3.1992,156.25,156.21,8.96606315]
[1727435066338,3.1992,156.25,156.22,3.1997]
[1727435069540,3.1992,156.25,156.22,20.0997]
[1727435069738,3.199,156.26,156.23,3.1995]
[1727435070143,1.393,156.3,156.22,16.9]
[1727435070345,1.393,156.3,156.23,3.1995]
[1727435070935,3.1989,156.27,156.23,3.1995]
[1727435071538,3.199,156.26,156.23,3.1995]
[1727435072036,3.1988,156.27,156.23,3.1995]
[1727435072237,1.393,156.3,156.22,20.0997]
[1727435072742,3.1991,156.26,156.22,20.0997]
[1727435075046,3.1991,156.26,156.23,3.1995]
[1727435075750,3.1988,156.27,156.24,3.1994]
[1727435076144,16.9,156.31,156.22,16.9]
[1727435076347,3.1991,156.26,156.23,10.81]
[1727435077448,3.1986,156.28,156.25,10.81]
[1727435077751,3.1986,156.28,156.27,10.81]
[1727435077943,3.198,156.31,156.28,3.1985]
[1727435078151,3.198,156.31,156.3,10.81]
[1727435079953,3.198,156.31,156.28,10.81]
[1727435080250,3.198,156.31,156.27,3.1986]
[1727435083051,3.16917185,156.37,156.21,3.9086]
[1727435083052,9.5828,156.5,156.29,16.9]
[1727435083250,16.9,156.38,156.29,16.9]
[1727435083454,20.10884248,156.38,156.29,16.9]
[1727435083758,2.6916,156.39,156.27,18.1657]
[1727435083759,16.9,156.37,156.27,18.1657]
[1727435084256,3.1976,156.33,156.29,3.1983]
[1727435085162,20.17294527,156.37,156.3,3.198]
[1727435085163,3.1973,156.35,156.3,3.198]
[1727435085556,16.9,156.37,156.3,3.198]
[1727435085751,3.1971,156.35,156.3,3.198]
[1727435086757,3.1973,156.34,156.3,3.198]
[1727435086960,16.9,156.37,156.29,3.1983]
[1727435087158,16.9,156.37,156.27,18.1657]
[1727435087354,3.1973,156.34,156.27,18.1657]
[1727435087556,3.1973,156.34,156.3,3.1979]
[1727435087855,16.9,156.38,156.29,20.17721464]
[1727435088163,3.1973,156.35,156.29,20.17721464]
[1727435088564,3.197,156.36,156.29,20.17721464]
[1727435088766,2.6916,156.39,156.31,16.9]
[1727435088963,20.02845392,156.42,156.33,16.9]
[1727435089153,3.1967,156.38,156.34,3.1973]
[1727435090867,3.1964,156.39,156.35,3.1971]
[1727435091762,3.1965,156.38,156.35,3.1971]
[1727435092271,3.1964,156.39,156.35,3.1971]
[1727435092762,16.9,156.42,156.35,3.1971]
[1727435093161,16.9,156.4,156.33,1.3665]
[1727435093362,16.9,156.4,156.31,16.9]
[1727435093568,1.3179,156.39,156.31,16.9]
[1727435093861,1.3179,156.39,156.32,3.1977]
[1727435094262,3.1967,156.37,156.33,20.0973]
[1727435094469,3.1967,156.37,156.33,16.9]
[1727435094668,16.9,156.42,156.33,16.9]
[1727435095073,3.1963,156.39,156.35,3.1969]
[1727435095464,3.1963,156.39,156.35,16.9]
[1727435096067,3.1957,156.42,156.35,16.9]
[1727435096373,1.2822,156.44,156.37,16.9]
[1727435096669,1.2822,156.44,156.38,3.1964]
[1727435097263,3.1958,156.42,156.38,3.1964]
[1727435097865,16.9,156.46,156.37,16.9]
[1727435098374,16.9,156.46,156.39,3.1962]
[1727435098568,3.1957,156.43,156.39,3.1962]
[1727435098977,16.9,156.46,156.38,3.1964]
[1727435099365,16.9,156.46,156.37,16.9]
[1727435099569,16.9,156.46,156.39,3.1962]
[1727435099867,3.1956,156.43,156.39,3.1962]
[1727435100268,3.1956,156.43,156.41,10.8]
[1727435100671,3.1956,156.43,156.39,13.9962]
[1727435100872,3.1957,156.42,156.39,13.9962]
[1727435101477,3.1957,156.42,156.38,13.9965]
[1727435101969,3.1957,156.42,156.39,10.8]
[1727435102775,3.1957,156.42,156.39,13.9963]
[1727435104181,10.8,156.44,156.4,10.8]
[1727435104370,12.1748,156.48,156.43,10.8]
[1727435104773,3.195,156.46,156.43,10.8]
[1727435105479,3.195,156.46,156.44,10.8]
[1727435105776,10.8,156.46,156.42,10.8]
[1727435105979,13.9952,156.45,156.41,10.8]
[1727435106572,3.1953,156.44,156.41,10.8]
[1727435108774,3.1955,156.43,156.41,10.8]
[1727435109184,10.8,156.45,156.41,10.8]
[1727435109578,3.1954,156.44,156.41,10.8]
[1727435112180,3.1954,156.44,156.41,13.9959]
[1727435112380,1.3748,156.48,156.43,10.8]
[1727435112580,12.1748,156.48,156.43,10.8]
[1727435112775,12.1748,156.48,156.43,13.9953]
[1727435113378,10.8,156.48,156.43,13.9953]
[1727435113573,10.8,156.48,156.43,10.8]
[1727435113877,10.8,156.47,156.42,13.9956]
[1727435114275,3.1949,156.46,156.42,13.9956]
[1727435114484,10.8,156.47,156.42,13.9956]
[1727435115078,10.8,156.47,156.42,3.1956]
[1727435115384,10.8,156.45,156.37,5.93059194]
[1727435115676,3.1956,156.43,156.39,3.1962]
[1727435116182,3.1956,156.43,156.4,10.8]
[1727435117883,1.3394,156.49,156.41,10.8]
[1727435118181,10.8,156.46,156.42,10.8]
[1727435118885,3.1951,156.45,156.42,10.8]
[1727435119076,10.8,156.48,156.43,10.8]
[1727435120578,1.3394,156.49,156.43,10.8]
[1727435120779,10.8,156.48,156.43,10.8]
[1727435121684,3.1948,156.47,156.43,10.8]
[1727435121882,10.8,156.48,156.43,10.8]
[1727435122581,3.1949,156.46,156.43,10.8]
[1727435122782,10.8,156.47,156.42,13.9956]
[1727435122977,10.8,156.47,156.42,10.8]
[1727435123485,3.1952,156.45,156.42,10.8]
[1727435124792,3.1953,156.44,156.42,10.8]
[1727435125089,3.1953,156.44,156.41,13.9958]
[1727435125982,3.1951,156.45,156.42,13.9956]
[1727435127084,3.1951,156.45,156.42,10.8]
[1727435132394,3.195,156.46,156.43,13.9954]
[1727435132789,10.8,156.48,156.37,5.93059194]
[1727435132993,3.1952,156.45,156.42,10.8]
[1727435134090,3.1952,156.45,156.42,13.9957]
[1727435134890,3.1954,156.44,156.42,10.8]
[1727435135392,10.8,156.47,156.42,10.8]
[1727435135597,3.1951,156.45,156.42,13.9956]
[1727435136396,3.1949,156.46,156.44,10.8]
[1727435136595,3.1949,156.46,156.37,5.93059194]
[1727435136596,94.03374128,156.51,156.45,10.8]
[1727435136798,94.03374128,156.51,156.46,10.8]
[1727435136799,104.83374128,156.51,156.46,10.8]
[1727435137001,3.1945,156.48,156.46,10.8]
[1727435138598,3.1947,156.47,156.45,10.8]
[1727435138994,3.1947,156.47,156.43,13.9954]
[1727435139602,3.1947,156.47,156.44,10.8]
[1727435142103,3.1949,156.46,156.44,10.8]
[1727435142708,3.1947,156.47,156.44,10.8]
[1727435143101,3.1947,156.47,156.44,13.9952]
[1727435143301,3.1946,156.48,156.44,13.9952]
[1727435143505,3.1946,156.48,156.46,10.8]
[1727435143903,10.8,156.48,156.37,5.93059194]
[1727435144109,10.8,156.48,156.44,10.8]
[1727435144593,10.8,156.48,156.37,5.93059194]
[1727435144594,3.1948,156.47,156.45,10.8]
[1727435146203,3.1945,156.48,156.45,10.8]
[1727435148801,3.1947,156.47,156.43,13.9953]
[1727435149808,3.1947,156.47,156.44,3.1952]
[1727435150010,3.1947,156.47,156.45,10.8]
[1727435151408,94.03374128,156.51,156.45,10.8]
[1727435151409,3.1946,156.48,156.45,10.8]
[1727435151804,10.8,156.49,156.45,10.8]
[1727435152211,3.1945,156.48,156.45,10.8]
[1727435152412,10.8,156.48,156.37,5.93059194]
[1727435152611,10.8,156.47,156.42,10.8]
[1727435153102,10.8,156.45,156.42,3.1956]
[1727435153816,13.9952,156.45,156.42,3.1956]
[1727435154011,10.8,156.45,156.41,3.1958]
[1727435154813,3.1954,156.44,156.41,3.1958]
[1727435158916,3.1952,156.45,156.42,13.9957]
[1727435159610,3.1952,156.45,156.37,5.93059194]
[1727435159611,3.1952,156.45,156.43,13.9954]
[1727435159814,3.1949,156.46,156.43,13.9954]
[1727435160915,3.1951,156.45,156.43,13.9954]
[1727435161218,3.1951,156.45,156.37,5.93059194]
[1727435161219,3.1951,156.45,156.42,13.9956]
[1727435161413,10.8,156.43,156.36,1.3583]
[1727435161614,10.8,156.4,156.37,3.1966]
[1727435161817,10.8,156.4,156.36,1.3583]
[1727435162016,3.1965,156.38,156.36,1.3583]
[1727435162212,10.8,156.39,156.36,4.5552]
[1727435162413,10.8,156.4,156.36,4.5552]
[1727435163014,13.9963,156.4,156.36,4.5552]
[1727435163316,3.1963,156.4,156.36,15.3552]
[1727435163524,1.385,156.45,156.38,10.8]
[1727435163726,3.1957,156.42,156.38,10.8]
[1727435163922,3.1957,156.42,156.38,13.9964]
[1727435164118,10.8,156.43,156.39,10.8]
[1727435164423,3.1955,156.44,156.4,10.8]
[1727435165020,3.1955,156.44,156.4,13.9961]
[1727435166023,13.9955,156.43,156.39,13.9963]
[1727435167125,3.1955,156.43,156.39,13.9963]
[1727435169923,3.1955,156.43,156.4,13.9961]
[1727435170123,13.9954,156.44,156.4,13.9961]
[1727435170319,3.1954,156.44,156.41,10.8]
[1727435170528,1.2766,156.49,156.41,10.8]
[1727435170728,10.8,156.46,156.43,10.8]
[1727435170917,10.8,156.46,156.41,10.8]
[1727435171119,10.8,156.46,156.41,13.9958]
[1727435171623,3.1952,156.45,156.41,13.9958]
[1727435175228,10.8,156.44,156.4,10.8]
[1727435175629,3.1957,156.43,156.4,10.8]
[1727435177329,3.1957,156.43,156.39,3.1961]
[1727435177530,3.1957,156.43,156.4,10.8]
[1727435178028,3.1957,156.43,156.4,13.996]
[1727435178227,13.9953,156.44,156.4,13.996]
[1727435178428,10.8,156.45,156.41,10.8]
[1727435179928,3.1953,156.44,156.41,13.9957]
[1727435181433,3.1951,156.45,156.41,13.9957]
[1727435181738,3.1951,156.45,156.42,3.1957]
[1727435184126,3.1951,156.45,156.42,13.9957]
[1727435185127,3.1951,156.45,156.41,3.1958]
[1727435185332,3.1951,156.45,156.41,13.9958]
[1727435185627,10.8,156.42,156.38,3.1964]
[1727435185932,10.8,156.41,156.36,1.3583]
[1727435186134,13.996,156.41,156.36,12.1583]
[1727435186735,10.8,156.41,156.36,1.3583]
[1727435186931,3.13392575,156.46,156.33,1.3926]
[1727435186932,10.8,156.38,156.33,1.3926]
[1727435187136,29.38549608,156.45,156.33,1.3926]
[1727435187137,10.8,156.37,156.33,1.3926]
[1727435187339,10.17549608,156.44,156.32,3.1976]
[1727435187340,10.8,156.35,156.32,3.1976]
[1727435187635,10.8,156.35,156.31,54.41901948]
[1727435187837,3.1973,156.34,156.31,54.41901948]
[1727435188438,3.1973,156.34,156.3,1.3242]
[1727435189446,10.8,156.34,156.3,1.3242]
[1727435189635,10.8,156.31,156.26,10.8]
[1727435191540,10.8,156.31,156.27,3.1987]
[1727435191936,10.8,156.3,156.25,1.3269]
[1727435192137,10.8,156.3,156.25,12.1269]
[1727435192735,5.95663777,156.36,156.27,10.8]
[1727435193039,10.8,156.31,156.27,10.8]
[1727435193239,10.8,156.33,156.28,13.9984]
[1727435193429,10.8,156.33,156.28,10.8]
[1727435193633,10.8,156.33,156.29,10.8]
[1727435194233,13.9977,156.33,156.29,10.8]
[1727435194433,13.9977,156.33,156.29,13.9982]
[1727435195534,13.9977,156.33,156.29,10.8]
[1727435196541,2.7162,156.36,156.3,10.8]
[1727435196841,12.1624,156.36,156.32,10.8]
[1727435197038,10.8,156.36,156.32,10.8]
[1727435197634,13.997,156.36,156.32,13.9977]
[1727435198139,1.3356,156.4,156.33,10.8]
[1727435198340,10.8,156.39,156.34,10.8]
[1727435198847,3.1965,156.38,156.34,13.9973]
[1727435200241,10.8,156.35,156.31,1.2672]
[1727435200846,10.8,156.34,156.24,2.6559]
[1727435201049,10.8,156.34,156.29,10.8]
[1727435201349,10.8,156.32,156.28,10.8]
[1727435202351,16.88,156.35,156.25,18.2204]
[1727435202744,16.88,156.33,156.25,1.3404]
[1727435202950,3.198,156.31,156.26,3.1988]
[1727435203257,3.198,156.31,156.25,1.3404]
[1727435203753,3.198,156.31,156.27,3.1986]
[1727435212766,3.198,156.31,156.25,1.3404]
[1727435212767,3.1979,156.32,156.28,3.1985]
[1727435212962,3.1979,156.32,156.25,1.3404]
[1727435213764,3.1976,156.33,156.26,16.88]
[1727435213971,16.88,156.34,156.26,16.88]
[1727435214366,16.88,156.34,156.25,1.3404]
[1727435214772,16.88,156.34,156.28,3.1984]
[1727435215362,3.1978,156.32,156.28,3.1984]
[1727435216960,16.88,156.34,156.25,18.2204]
[1727435217568,3.1975,156.33,156.3,3.198]
[1727435217769,16.88,156.34,156.3,3.198]
[1727435218873,3.1977,156.33,156.3,3.198]
[1727435222378,10.82,156.33,156.3,3.198]
[1727435222770,14.0176,156.33,156.3,3.198]
[1727435222968,10.82,156.32,156.29,3.1983]
[1727435223774,14.0178,156.32,156.29,3.1983]
[1727435223974,10.82,156.32,156.28,3.1985]
[1727435224373,3.21985535,156.36,156.25,1.3404]
[1727435224374,10.82,156.31,156.25,1.3404]
[1727435224577,10.82,156.27,156.25,4.5395]
[1727435224876,10.82,156.27,156.25,1.3404]
[1727435226979,10.82,156.27,156.25,4.5395]
[1727435227275,14.0184,156.29,156.26,3.1988]
[1727435228277,14.0184,156.29,156.25,1.3404]
[1727435228278,1.3845,156.34,156.27,10.82]
[1727435228582,1.3845,156.34,156.25,1.3404]
[1727435228583,10.82,156.34,156.3,10.82]
[1727435228774,10.82,156.34,156.31,3.1978]
[1727435229179,10.82,156.34,156.33,3.1975]
[1727435229380,10.82,156.38,156.33,10.82]
[1727435229881,10.82,156.38,156.34,3.1972]
[1727435230082,10.82,156.38,156.33,10.82]
[1727435230282,18.2324,156.4,156.3,16.89]
[1727435230977,18.2324,156.4,156.3,20.03625062]
[1727435231377,18.2324,156.4,156.31,1.2684]
[1727435232379,3.1967,156.38,156.31,1.2684]
[1727435233173,16.89,156.41,156.32,18.2449]
[1727435233379,18.1859,156.43,156.34,16.89]
[1727435234876,3.1961,156.4,156.34,16.89]
[1727435235476,3.1963,156.39,156.35,3.1971]
[1727435236581,3.1963,156.39,156.36,3.1969]
[1727435236788,18.1859,156.43,156.32,19.6215]
[1727435236983,18.1859,156.43,156.36,3.1968]
[1727435237389,3.196,156.41,156.32,19.6215]
[1727435237689,3.196,156.41,156.37,3.1967]
[1727435239088,3.1961,156.4,156.37,3.1967]
[1727435243185,18.1859,156.43,156.36,3.1968]
[1727435243392,16.89,156.39,156.32,2.7315]
[1727435243889,16.89,156.39,156.32,1.3549]
[1727435244281,16.89,156.37,156.21,57.65605849]
[1727435244588,16.89,156.37,156.28,16.89]
[1727435245187,16.89,156.37,156.3,3.198]
[1727435246288,3.1971,156.35,156.3,3.198]
[1727435247091,1.3592,156.39,156.28,16.89]
[1727435247289,16.89,156.38,156.28,21.41147878]
[1727435247486,3.1971,156.35,156.31,3.1978]
[1727435248096,3.1971,156.35,156.32,3.1977]
[1727435248593,3.1971,156.35,156.31,3.1978]
[1727435249991,3.1974,156.34,156.31,3.1978]
[1727435250495,14.0174,156.34,156.31,3.1978]
[1727435255504,10.82,156.34,156.32,3.1977]
[1727435256502,14.0172,156.35,156.3,10.82]
[1727435257905,14.0172,156.35,156.32,503.1975]
[1727435261111,14.0174,156.34,156.32,500.0]
[1727435261410,10.82,156.34,156.32,500.0]
[1727435261611,14.0175,156.33,156.32,500.0]
[1727435262104,14.0175,156.33,156.32,398.7078]
[1727435262610,14.0175,156.33,156.32,396.6118]
[1727435262806,14.0175,156.33,156.32,389.9291]
[1727435263205,17.24055378,156.33,156.32,389.9291]
[1727435264007,14.0175,156.33,156.32,386.8291]
[1727435264311,17.14364147,156.33,156.32,386.8291]
[1727435264710,17.14364147,156.33,156.32,289.7291]
[1727435265407,14.0175,156.33,156.32,286.6291]
[1727435265606,14.0175,156.33,156.32,263.3991]
[1727435265607,17.20755447,156.33,156.32,263.3991]
[1727435265804,14.0175,156.33,156.32,260.1991]
[1727435266005,17.23699423,156.33,156.32,260.1991]
[1727435266312,14.0175,156.33,156.32,253.9991]
[1727435266709,33.2275,156.33,156.32,253.9991]
[1727435266913,36.35643496,156.33,156.32,253.9991]
[1727435267316,33.2275,156.33,156.32,230.3891]
[1727435267509,45.15641299,156.33,156.32,133.2891]
[1727435267706,48.32310765,156.33,156.32,133.2891]
[1727435268413,48.32310765,156.33,156.32,110.0591]
[1727435269512,45.15641299,156.33,156.32,104.0591]
[1727435269711,45.15641299,156.33,156.32,99.774]
[1727435270013,45.15641299,156.33,156.32,75.9184]
[1727435270221,48.37576959,156.33,156.32,75.9184]
[1727435270519,3.1993,156.25,156.19,14.0202]
[1727435270715,10.82,156.24,156.19,10.82]
[1727435270924,10.82,156.23,156.18,1.3312]
[1727435271114,3.2001,156.21,156.18,1.3312]
[1727435271615,94.16828504,156.29,156.18,12.1512]
[1727435271814,3.1997,156.23,156.18,15.3516]
[1727435274311,3.27962319,156.25,156.18,1.3312]
[1727435274626,10.82,156.22,156.18,12.1512]
[1727435275913,3.2001,156.21,156.18,1.3312]
[1727435277323,3.2001,156.21,156.18,12.1512]
[1727435278022,3.1998,156.22,156.18,12.1512]
[1727435278822,10.82,156.23,156.18,12.1512]
[1727435279214,13.96375297,156.23,156.18,12.1512]
[1727435279419,13.96375297,156.23,156.18,1.3312]
[1727435279420,10.82,156.2,156.18,1.3312]
[1727435279615,113.37828504,156.29,156.17,1.3398]
[1727435279819,6.42915864,156.23,156.19,3.2003]
[1727435280027,6.42915864,156.23,156.18,12.0945]
[1727435280028,14.0196,156.23,156.18,12.0945]
[1727435280424,10.82,156.23,156.18,12.0945]
[1727435280727,10.82,156.22,156.18,1.2745]
[1727435281530,14.0198,156.22,156.18,4.475]
[1727435283128,10.82,156.22,156.18,4.475]
[1727435283830,10.82,156.23,156.2,3.2002]
[1727435284034,10.82,156.23,156.19,10.82]
[1727435284332,10.82,156.23,156.19,3.2003]
[1727435286032,10.82,156.23,156.2,3.2002]
[1727435286531,10.82,156.22,156.2,3.2002]
[1727435287635,10.82,156.22,156.18,13.4228]
[1727435287636,10.82,156.22,156.19,3.2003]
[1727435287834,10.82,156.21,156.19,3.2003]
[1727435288539,3.1996,156.23,156.19,3.2003]
[1727435288835,10.82,156.21,156.19,3.2003]
[1727435302147,14.0202,156.2,156.18,2.6028]
[1727435303345,10.82,156.2,156.18,2.6028]
[1727435303545,10.82,156.2,156.18,5.8033]
[1727435303746,94.16828504,156.29,156.19,10.82]
[1727435303945,94.16828504,156.29,156.2,10.82]
[1727435303946,14.0193,156.25,156.2,10.82]
[1727435304142,10.82,156.25,156.19,10.82]
[1727435304339,97.31195546,156.29,156.19,10.82]
[1727435304544,10.82,156.24,156.19,10.82]
[1727435304747,97.31195546,156.29,156.19,10.82]
[1727435304942,10.82,156.26,156.21,10.82]
[1727435305453,10.82,156.25,156.22,3.1997]
[1727435307552,10.82,156.25,156.21,3.1999]
[1727435308055,97.31195546,156.29,156.21,3.1999]
[1727435308056,14.0194,156.24,156.21,3.1999]
[1727435310944,3.1994,156.24,156.21,3.1999]
[1727435311267,3.1994,156.24,156.22,3.1998]
[1727435311454,3.1992,156.25,156.22,14.0198]
[1727435311956,3.1992,156.25,156.23,3.1996]
[1727435312552,3.1992,156.25,156.22,10.82]
[1727435313256,3.1992,156.25,156.22,14.0196]
[1727435313957,10.82,156.26,156.22,14.0196]
[1727435313958,14.019,156.26,156.22,14.0196]
[1727435315965,3.1992,156.25,156.22,14.0196]
[1727435320564,14.019,156.26,156.22,14.0196]
[1727435323755,94.16828504,156.29,156.24,10.82]
[1727435323954,104.98828504,156.29,156.24,10.82]
[1727435324361,94.16828504,156.29,156.25,10.82]
[1727435324555,10.82,156.31,156.27,10.82]
[1727435325160,10.82,156.3,156.18,2.6028]
[1727435325355,76.04,156.35,156.18,2.6028]
[1727435325356,10.82,156.26,156.18,2.6028]
[1727435325558,10.82,156.26,156.21,10.82]
[1727435325859,14.0193,156.25,156.21,3.1999]
[1727435328462,14.0193,156.25,156.22,3.1997]
[1727435330258,10.82,156.25,156.21,10.82]
[1727435331057,10.82,156.25,156.22,3.1997]
[1727435331256,3.1991,156.26,156.22,14.0197]
[1727435339174,3.1991,156.26,156.23,3.1996]
[1727435344673,76.04,156.35,156.23,10.82]
[1727435344976,10.82,156.31,156.27,10.82]
[1727435345178,3.198,156.31,156.27,14.0186]
[1727435345374,3.198,156.31,156.27,10.82]